fUST/lending_fUST_20260520
["ID","MTS","AMOUNT","RATE_DAILY","PERIOD"]
[422697321,1779262247000,-753.47,8.219e-05,2]
[422697332,1779262247000,-500.0,8.219e-05,2]
[422697351,1779262247000,-1143.3,8.219e-05,2]
[422697344,1779262247000,-500.0,8.219e-05,2]
[422697349,1779262247000,-500.0,8.219e-05,2]
[422697377,1779262247000,-376.87419283,8.219e-05,2]
[422697380,1779262247000,-546.05844172,8.219e-05,2]
[422697379,1779262247000,-500.1649131,8.219e-05,2]
[422697378,1779262247000,-500.0,8.219e-05,2]
[422697376,1779262247000,-854.82983735,8.219e-05,2]
[422697373,1779262247000,-395.85186659,8.219e-05,2]
[422697370,1779262247000,-500.0,8.219e-05,2]
[422697374,1779262247000,-2563.80813341,8.219e-05,2]
[422697346,1779262247000,-500.0,8.219e-05,2]
[422697375,1779262247000,-29609.59202924,8.219e-05,2]
[422697367,1779262247000,-1650.64,8.219e-05,2]
[422697371,1779262247000,-500.0,8.219e-05,2]
[422697372,1779262247000,-104.14813341,8.219e-05,2]
[422697368,1779262247000,-892.04,8.219e-05,2]
[422697365,1779262247000,-500.0,8.219e-05,2]
[422697369,1779262247000,-500.0,8.219e-05,2]
[422697360,1779262247000,-500.0,8.219e-05,2]
[422697364,1779262247000,-500.0,8.219e-05,2]
[422697359,1779262247000,-5651.74,8.219e-05,2]
[422697361,1779262247000,-4567.14,8.219e-05,2]
[422697362,1779262247000,-500.0,8.219e-05,2]
[422697357,1779262247000,-500.0,8.219e-05,2]
[422697356,1779262247000,-500.0,8.219e-05,2]
[422697358,1779262247000,-500.0,8.219e-05,2]
[422697363,1779262247000,-500.0,8.219e-05,2]
[422697355,1779262247000,-6428.04,8.219e-05,2]
[422697352,1779262247000,-2238.77,8.219e-05,2]
[422697354,1779262247000,-500.0,8.219e-05,2]
[422697353,1779262247000,-2124.45,8.219e-05,2]
[422697366,1779262247000,-500.86906515,8.219e-05,2]
[422697381,1779262273000,-1594.81155828,8.219e-05,2]
[422697460,1779263432000,-325.9692126,7.45e-05,2]
[422697466,1779263432000,-92.12928624,7.592e-05,2]
[422697469,1779263432000,-489.84782392,7.592e-05,2]
[422697462,1779263432000,-456.5974351,7.45e-05,2]
[422697471,1779263432000,-537.6845,8.013e-05,2]
[422697458,1779263432000,-456.5974351,7.45e-05,2]
[422697465,1779263432000,-456.5974351,7.45e-05,2]
[422697473,1779263432000,-300.0,8.017e-05,2]
[422697475,1779263432000,-6995.3785618,8.018e-05,2]
[422697485,1779263432000,-161.70661154,8.079e-05,2]
[422697487,1779263432000,-530.0,8.1e-05,2]
[422697490,1779263432000,-255.82,8.118e-05,2]
[422697492,1779263432000,-111.33972942,8.118e-05,2]
[422697504,1779263432000,-255.52275486,8.118e-05,2]
[422697477,1779263432000,-756.47102253,8.018e-05,2]
[422697489,1779263432000,-766.43500783,8.118e-05,2]
[422697481,1779263432000,-2919.4319771,8.079e-05,2]
[422697483,1779263432000,-544.59870481,8.079e-05,2]
[422697495,1779263432000,-388.66027058,8.118e-05,2]
[422697497,1779263432000,-188.65724514,8.118e-05,2]
[422697510,1779263432000,-2216.41414713,8.119e-05,2]
[422697506,1779263432000,-21.27476442,8.118e-05,2]
[422697508,1779263432000,-474.93085287,8.118e-05,2]
[422697498,1779263432000,-500.0,8.118e-05,2]
[422697502,1779263432000,-500.0,8.118e-05,2]
[422697501,1779263432000,-500.0,8.118e-05,2]
[422697511,1779263432000,-8993.00132074,8.119e-05,2]
[422697479,1779263432000,-557.5788265,8.068e-05,2]
[422697520,1779263438000,-25591.32118955,8.119e-05,2]
[422697535,1779263444000,-10938.71562326,8.119e-05,2]
[422697554,1779263446000,-310.31767446,8.119e-05,2]
[422697556,1779263446000,-1607.50592395,8.119e-05,2]
[422697559,1779263447000,-288.87684538,8.119e-05,2]
[422697558,1779263447000,-913.16462821,8.119e-05,2]
[422697577,1779264073000,-426.74494556,7.336e-05,2]
[422697651,1779264631000,-250.0,7.603e-05,2]
[422697645,1779264631000,-29.85248954,7.336e-05,2]
[422697643,1779264631000,-442.6820174,6.628e-05,2]
[422697649,1779264631000,-6046.93812108,7.6e-05,2]
[422697647,1779264631000,-577.11101008,7.35e-05,2]
[422697662,1779264631000,-151.0,8.118e-05,2]
[422697653,1779264631000,-500.0,7.808e-05,2]
[422697657,1779264631000,-184.91614891,8.113e-05,2]
[422697655,1779264631000,-224.5964076,8.105e-05,2]
[422697664,1779264631000,-151.0,8.118e-05,2]
[422697666,1779264631000,-766.43500783,8.118e-05,2]
[422697674,1779264631000,-2730.60574645,8.119e-05,2]
[422697668,1779264631000,-161.70661154,8.118e-05,2]
[422697670,1779264631000,-2531.00861157,8.119e-05,2]
[422697672,1779264631000,-7974.04448258,8.119e-05,2]
[422697676,1779264631000,-1101.48066465,8.119e-05,2]
[422697679,1779264631000,-1043.02980477,8.119e-05,2]
[422697660,1779264631000,-300.0,8.117e-05,2]
[422697782,1779264643000,-500.0,8.219e-05,2]
[422697785,1779264643000,-151.0,8.219e-05,2]
[422697779,1779264643000,-500.0,8.219e-05,2]
[422697786,1779264643000,-151.0,8.219e-05,2]
[422697784,1779264643000,-500.0,8.219e-05,2]
[422697789,1779264643000,-151.0,8.219e-05,2]
[422697788,1779264643000,-151.0,8.219e-05,2]
[422697787,1779264643000,-151.0,8.219e-05,2]
[422697792,1779264643000,-500.0,8.219e-05,2]
[422697794,1779264643000,-151.0,8.219e-05,2]
[422697793,1779264643000,-500.0,8.219e-05,2]
[422697795,1779264643000,-151.0,8.219e-05,2]
[422697791,1779264643000,-205.62634,8.219e-05,2]
[422697796,1779264643000,-151.0,8.219e-05,2]
[422697797,1779264643000,-151.0,8.219e-05,2]
[422697799,1779264643000,-151.0,8.219e-05,2]
[422697790,1779264643000,-151.0,8.219e-05,2]
[422697780,1779264643000,-500.0,8.219e-05,2]
[422697761,1779264643000,-10555.97148568,8.119e-05,2]
[422697781,1779264643000,-500.0,8.219e-05,2]
[422697762,1779264643000,-152.0,8.15e-05,7]
[422697800,1779264643000,-151.0,8.219e-05,2]
[422697765,1779264643000,-1475.9377079,8.15e-05,2]
[422697763,1779264643000,-152.0,8.15e-05,7]
[422697764,1779264643000,-152.0,8.15e-05,7]
[422697766,1779264643000,-152.0,8.152e-05,7]
[422697767,1779264643000,-152.0,8.152e-05,7]
[422697769,1779264643000,-152.0,8.155e-05,7]
[422697783,1779264643000,-570.17,8.219e-05,2]
[422697770,1779264643000,-152.0,8.186e-05,2]
[422697768,1779264643000,-152.0,8.152e-05,7]
[422697772,1779264643000,-160.0,8.215e-05,2]
[422697775,1779264643000,-3091.6132,8.219e-05,2]
[422697774,1779264643000,-358.001,8.218e-05,2]
[422697777,1779264643000,-500.0,8.219e-05,2]
[422697776,1779264643000,-901.7161,8.219e-05,2]
[422697773,1779264643000,-160.0,8.215e-05,2]
[422697778,1779264643000,-500.0,8.219e-05,2]
[422697771,1779264643000,-152.0,8.2e-05,2]
[422697798,1779264643000,-151.0,8.219e-05,2]
[422697810,1779264643000,-204.58674,8.219e-05,2]
[422697806,1779264643000,-151.0,8.219e-05,2]
[422697825,1779264643000,-500.0,8.219e-05,2]
[422697824,1779264643000,-500.0,8.219e-05,2]
[422697828,1779264643000,-500.0,8.219e-05,2]
[422697831,1779264643000,-500.0,8.219e-05,2]
[422697830,1779264643000,-1110.03,8.219e-05,2]
[422697829,1779264643000,-500.0,8.219e-05,2]
[422697833,1779264643000,-151.0,8.219e-05,2]
[422697801,1779264643000,-151.0,8.219e-05,2]
[422697834,1779264643000,-151.0,8.219e-05,2]
[422697838,1779264643000,-500.0,8.219e-05,2]
[422697839,1779264643000,-500.0,8.219e-05,2]
[422697835,1779264643000,-151.0,8.219e-05,2]
[422697836,1779264643000,-151.0,8.219e-05,2]
[422697837,1779264643000,-283.459381,8.219e-05,2]
[422697840,1779264643000,-500.0,8.219e-05,2]
[422697841,1779264643000,-501.59464652,8.219e-05,2]
[422697842,1779264643000,-151.0,8.219e-05,2]
[422697827,1779264643000,-500.0,8.219e-05,2]
[422697826,1779264643000,-500.0,8.219e-05,2]
[422697832,1779264643000,-151.0,8.219e-05,2]
[422697822,1779264643000,-500.0,8.219e-05,2]
[422697823,1779264643000,-173.30355002,8.219e-05,2]
[422697805,1779264643000,-151.0,8.219e-05,2]
[422697804,1779264643000,-151.0,8.219e-05,2]
[422697803,1779264643000,-151.0,8.219e-05,2]
[422697807,1779264643000,-151.0,8.219e-05,2]
[422697802,1779264643000,-500.0,8.219e-05,2]
[422697809,1779264643000,-151.0,8.219e-05,2]
[422697814,1779264643000,-151.0,8.219e-05,2]
[422697811,1779264643000,-889.68,8.219e-05,2]
[422697808,1779264643000,-151.0,8.219e-05,2]
[422697813,1779264643000,-151.0,8.219e-05,2]
[422697815,1779264643000,-151.0,8.219e-05,2]
[422697816,1779264643000,-151.0,8.219e-05,2]
[422697821,1779264643000,-151.422278,8.219e-05,2]
[422697817,1779264643000,-151.0,8.219e-05,2]
[422697820,1779264643000,-258.700191,8.219e-05,2]
[422697818,1779264643000,-151.0,8.219e-05,2]
[422697819,1779264643000,-151.0,8.219e-05,2]
[422697812,1779264643000,-500.0,8.219e-05,2]
[422697848,1779264644000,-1174.26,8.219e-05,2]
[422697843,1779264644000,-151.0,8.219e-05,2]
[422697844,1779264644000,-151.0,8.219e-05,2]
[422697845,1779264644000,-151.0,8.219e-05,2]
[422697846,1779264644000,-155.221944,8.219e-05,2]
[422697847,1779264644000,-500.0,8.219e-05,2]
[422697852,1779264644000,-199.591373,8.219e-05,2]
[422697858,1779264644000,-59.66086525,8.219e-05,2]
[422697850,1779264644000,-500.0,8.219e-05,2]
[422697849,1779264644000,-741.75,8.219e-05,2]
[422697853,1779264644000,-500.0,8.219e-05,2]
[422697856,1779264644000,-199.591373,8.219e-05,2]
[422697857,1779264644000,-199.591373,8.219e-05,2]
[422697855,1779264644000,-199.591373,8.219e-05,2]
[422697854,1779264644000,-199.591373,8.219e-05,2]
[422697851,1779264644000,-364.33770563,8.219e-05,2]
[422697905,1779264646000,-243.218021,8.219e-05,2]
[422697906,1779264646000,-243.218021,8.219e-05,2]
[422697907,1779264646000,-243.218021,8.219e-05,2]
[422697908,1779264646000,-243.218021,8.219e-05,2]
[422697911,1779264646000,-243.218021,8.219e-05,2]
[422697913,1779264646000,-243.218021,8.219e-05,2]
[422697910,1779264646000,-243.218021,8.219e-05,2]
[422697912,1779264646000,-243.218021,8.219e-05,2]
[422697909,1779264646000,-243.218021,8.219e-05,2]
[422697914,1779264646000,-243.218021,8.219e-05,2]
[422697916,1779264647000,-243.218021,8.219e-05,2]
[422697915,1779264647000,-243.218021,8.219e-05,2]
[422697918,1779264647000,-243.218021,8.219e-05,2]
[422697917,1779264647000,-243.218021,8.219e-05,2]
[422697921,1779264647000,-243.218021,8.219e-05,2]
[422697922,1779264647000,-243.218021,8.219e-05,2]
[422697920,1779264647000,-243.218021,8.219e-05,2]
[422697919,1779264647000,-243.218021,8.219e-05,2]
[422697924,1779264647000,-243.218029,8.219e-05,2]
[422697923,1779264647000,-243.218021,8.219e-05,2]
[422697925,1779264647000,-552.25,8.219e-05,2]
[422697926,1779264647000,-500.0,8.219e-05,2]
[422697927,1779264647000,-500.0,8.219e-05,2]
[422697928,1779264647000,-938.75,8.219e-05,2]
[422697929,1779264647000,-500.0,8.219e-05,2]
[422697930,1779264647000,-573.1348861,8.219e-05,2]
[422697932,1779264647000,-486.98667644,8.219e-05,2]
[422697931,1779264647000,-928.55,8.219e-05,2]
[422698006,1779265831000,-572.33420601,7.235e-05,2]
[422698004,1779265831000,-151.0,7.125e-05,2]
[422698014,1779265832000,-151.0,7.695e-05,2]
[422698008,1779265832000,-151.0,7.346e-05,2]
[422698012,1779265832000,-151.0,7.573e-05,2]
[422698010,1779265832000,-200.0,7.5e-05,2]
[422698018,1779265832000,-2509.69890737,7.808e-05,7]
[422698016,1779265832000,-300.0,7.807e-05,2]
[422698217,1779265838000,-500.0,8.015e-05,2]
[422698193,1779265838000,-500.0,8.015e-05,2]
[422698205,1779265838000,-500.0,8.015e-05,2]
[422698207,1779265838000,-500.0,8.015e-05,2]
[422698211,1779265838000,-500.0,8.015e-05,2]
[422698209,1779265838000,-500.0,8.015e-05,2]
[422698213,1779265838000,-566.6383513,8.015e-05,2]
[422698223,1779265838000,-500.0,8.015e-05,2]
[422698215,1779265838000,-500.0,8.015e-05,2]
[422698189,1779265838000,-500.0,8.015e-05,2]
[422698227,1779265838000,-194.723576,8.017e-05,2]
[422698225,1779265838000,-500.0,8.015e-05,2]
[422698235,1779265838000,-336.572983,8.017e-05,2]
[422698233,1779265838000,-194.723576,8.017e-05,2]
[422698219,1779265838000,-500.0,8.015e-05,2]
[422698231,1779265838000,-194.723576,8.017e-05,2]
[422698221,1779265838000,-500.0,8.015e-05,2]
[422698237,1779265838000,-336.572983,8.017e-05,2]
[422698239,1779265838000,-336.572983,8.017e-05,2]
[422698243,1779265838000,-161.112644,8.017e-05,2]
[422698241,1779265838000,-336.572983,8.017e-05,2]
[422698187,1779265838000,-500.0,8.015e-05,2]
[422698229,1779265838000,-194.723576,8.017e-05,2]
[422698191,1779265838000,-500.0,8.015e-05,2]
[422698161,1779265838000,-500.0,8.015e-05,2]
[422698199,1779265838000,-500.0,8.015e-05,2]
[422698151,1779265838000,-3735.16487972,7.808e-05,7]
[422698154,1779265838000,-8790.40319014,7.808e-05,7]
[422698156,1779265838000,-500.0,7.808e-05,2]
[422698149,1779265838000,-25133.97209272,7.808e-05,7]
[422698157,1779265838000,-13379.34754993,7.916e-05,2]
[422698165,1779265838000,-500.0,8.015e-05,2]
[422698171,1779265838000,-500.0,8.015e-05,2]
[422698163,1779265838000,-500.0,8.015e-05,2]
[422698247,1779265838000,-177.924671,8.017e-05,2]
[422698173,1779265838000,-500.0,8.015e-05,2]
[422698203,1779265838000,-500.0,8.015e-05,2]
[422698159,1779265838000,-1465.42618586,8e-05,2]
[422698169,1779265838000,-500.0,8.015e-05,2]
[422698167,1779265838000,-500.0,8.015e-05,2]
[422698177,1779265838000,-152.01535541,8.015e-05,2]
[422698179,1779265838000,-500.0,8.015e-05,2]
[422698183,1779265838000,-500.0,8.015e-05,2]
[422698181,1779265838000,-627.96453764,8.015e-05,2]
[422698185,1779265838000,-500.0,8.015e-05,2]
[422698197,1779265838000,-500.0,8.015e-05,2]
[422698195,1779265838000,-500.0,8.015e-05,2]
[422698201,1779265838000,-500.0,8.015e-05,2]
[422698175,1779265838000,-500.0,8.015e-05,2]
[422698251,1779265838000,-558.54481221,8.017e-05,2]
[422698255,1779265838000,-558.54481221,8.017e-05,2]
[422698245,1779265838000,-161.112644,8.017e-05,2]
[422698303,1779265838000,-151.0,8.018e-05,2]
[422698299,1779265838000,-494.611084,8.018e-05,2]
[422698306,1779265838000,-151.0,8.018e-05,2]
[422698310,1779265838000,-166.47842,8.018e-05,2]
[422698301,1779265838000,-494.611084,8.018e-05,2]
[422698316,1779265838000,-166.47842,8.018e-05,2]
[422698312,1779265838000,-151.0,8.018e-05,2]
[422698308,1779265838000,-494.611084,8.018e-05,2]
[422698314,1779265838000,-166.47842,8.018e-05,2]
[422698330,1779265838000,-1713.000454,8.018e-05,2]
[422698304,1779265838000,-151.0,8.018e-05,2]
[422698318,1779265838000,-166.47842,8.018e-05,2]
[422698328,1779265838000,-1713.000454,8.018e-05,2]
[422698336,1779265838000,-721.022216,8.018e-05,2]
[422698320,1779265838000,-151.0,8.018e-05,2]
[422698340,1779265838000,-721.022216,8.018e-05,2]
[422698334,1779265838000,-1713.000454,8.018e-05,2]
[422698338,1779265838000,-721.022216,8.018e-05,2]
[422698324,1779265838000,-151.0,8.018e-05,2]
[422698326,1779265838000,-151.0,8.018e-05,2]
[422698342,1779265838000,-721.022216,8.018e-05,2]
[422698344,1779265838000,-721.022216,8.018e-05,2]
[422698322,1779265838000,-151.0,8.018e-05,2]
[422698297,1779265838000,-494.611084,8.018e-05,2]
[422698332,1779265838000,-1713.000454,8.018e-05,2]
[422698294,1779265838000,-578.85553264,8.017e-05,2]
[422698253,1779265838000,-558.54481221,8.017e-05,2]
[422698295,1779265838000,-578.85553264,8.017e-05,2]
[422698259,1779265838000,-558.54481221,8.017e-05,2]
[422698249,1779265838000,-558.54481221,8.017e-05,2]
[422698260,1779265838000,-558.54481221,8.017e-05,2]
[422698257,1779265838000,-558.54481221,8.017e-05,2]
[422698262,1779265838000,-558.54481221,8.017e-05,2]
[422698270,1779265838000,-558.54481221,8.017e-05,2]
[422698268,1779265838000,-558.54481221,8.017e-05,2]
[422698271,1779265838000,-558.54481221,8.017e-05,2]
[422698273,1779265838000,-558.54481221,8.017e-05,2]
[422698264,1779265838000,-558.54481221,8.017e-05,2]
[422698286,1779265838000,-578.85553264,8.017e-05,2]
[422698290,1779265838000,-578.85553264,8.017e-05,2]
[422698277,1779265838000,-558.54481221,8.017e-05,2]
[422698288,1779265838000,-578.85553264,8.017e-05,2]
[422698266,1779265838000,-558.54481221,8.017e-05,2]
[422698285,1779265838000,-578.85553264,8.017e-05,2]
[422698292,1779265838000,-578.85553264,8.017e-05,2]
[422698281,1779265838000,-578.85553264,8.017e-05,2]
[422698279,1779265838000,-558.54481221,8.017e-05,2]
[422698275,1779265838000,-558.54481221,8.017e-05,2]
[422698283,1779265838000,-578.85553264,8.017e-05,2]
[422698421,1779265839000,-8197.312105,8.018e-05,2]
[422698431,1779265839000,-455.444334,8.018e-05,2]
[422698435,1779265839000,-8197.312105,8.018e-05,2]
[422698425,1779265839000,-455.444334,8.018e-05,2]
[422698423,1779265839000,-455.444334,8.018e-05,2]
[422698410,1779265839000,-719.812715,8.018e-05,2]
[422698408,1779265839000,-719.812715,8.018e-05,2]
[422698427,1779265839000,-8197.312105,8.018e-05,2]
[422698429,1779265839000,-8197.312105,8.018e-05,2]
[422698433,1779265839000,-455.444334,8.018e-05,2]
[422698404,1779265839000,-719.812715,8.018e-05,2]
[422698419,1779265839000,-8197.312105,8.018e-05,2]
[422698437,1779265839000,-8197.312105,8.018e-05,2]
[422698457,1779265839000,-151.0,8.018e-05,2]
[422698441,1779265839000,-455.444334,8.018e-05,2]
[422698451,1779265839000,-455.444334,8.018e-05,2]
[422698453,1779265839000,-1917.443085,8.018e-05,2]
[422698443,1779265839000,-8197.312105,8.018e-05,2]
[422698455,1779265839000,-1917.443085,8.018e-05,2]
[422698447,1779265839000,-1917.443085,8.018e-05,2]
[422698459,1779265839000,-151.0,8.018e-05,2]
[422698445,1779265839000,-8197.312105,8.018e-05,2]
[422698449,1779265839000,-455.444334,8.018e-05,2]
[422698461,1779265839000,-1917.443085,8.018e-05,2]
[422698463,1779265839000,-156.081244,8.018e-05,2]
[422698402,1779265839000,-719.812715,8.018e-05,2]
[422698473,1779265839000,-1917.443085,8.018e-05,2]
[422698439,1779265839000,-455.444334,8.018e-05,2]
[422698399,1779265839000,-719.812715,8.018e-05,2]
[422698561,1779265839000,-151.0,8.018e-05,2]
[422698397,1779265839000,-719.812715,8.018e-05,2]
[422698465,1779265839000,-1917.443085,8.018e-05,2]
[422698346,1779265839000,-721.022216,8.018e-05,2]
[422698353,1779265839000,-721.022216,8.018e-05,2]
[422698351,1779265839000,-721.022216,8.018e-05,2]
[422698350,1779265839000,-195.055391,8.018e-05,2]
[422698348,1779265839000,-195.055391,8.018e-05,2]
[422698355,1779265839000,-151.0,8.018e-05,2]
[422698357,1779265839000,-195.055391,8.018e-05,2]
[422698359,1779265839000,-151.0,8.018e-05,2]
[422698361,1779265839000,-195.055391,8.018e-05,2]
[422698365,1779265839000,-195.055391,8.018e-05,2]
[422698363,1779265839000,-151.0,8.018e-05,2]
[422698379,1779265839000,-151.0,8.018e-05,2]
[422698400,1779265839000,-719.812715,8.018e-05,2]
[422698367,1779265839000,-151.0,8.018e-05,2]
[422698383,1779265839000,-151.0,8.018e-05,2]
[422698384,1779265839000,-151.0,8.018e-05,2]
[422698386,1779265839000,-151.0,8.018e-05,2]
[422698369,1779265839000,-195.055391,8.018e-05,2]
[422698375,1779265839000,-151.0,8.018e-05,2]
[422698371,1779265839000,-151.0,8.018e-05,2]
[422698373,1779265839000,-195.055391,8.018e-05,2]
[422698377,1779265839000,-195.055391,8.018e-05,2]
[422698388,1779265839000,-151.0,8.018e-05,2]
[422698390,1779265839000,-151.0,8.018e-05,2]
[422698392,1779265839000,-152.747853,8.018e-05,2]
[422698406,1779265839000,-719.812715,8.018e-05,2]
[422698395,1779265839000,-151.0,8.018e-05,2]
[422698381,1779265839000,-151.0,8.018e-05,2]
[422698475,1779265839000,-1917.443085,8.018e-05,2]
[422698573,1779265839000,-151.0,8.018e-05,2]
[422698479,1779265839000,-1917.443085,8.018e-05,2]
[422698537,1779265839000,-166.436257,8.018e-05,2]
[422698539,1779265839000,-151.0,8.018e-05,2]
[422698541,1779265839000,-151.0,8.018e-05,2]
[422698543,1779265839000,-151.0,8.018e-05,2]
[422698545,1779265839000,-151.0,8.018e-05,2]
[422698554,1779265839000,-239.001407,8.018e-05,2]
[422698558,1779265839000,-151.0,8.018e-05,2]
[422698556,1779265839000,-151.0,8.018e-05,2]
[422698478,1779265839000,-1917.443085,8.018e-05,2]
[422698549,1779265839000,-151.0,8.018e-05,2]
[422698552,1779265839000,-151.0,8.018e-05,2]
[422698551,1779265839000,-151.0,8.018e-05,2]
[422698563,1779265839000,-151.0,8.018e-05,2]
[422698567,1779265839000,-151.0,8.018e-05,2]
[422698565,1779265839000,-151.0,8.018e-05,2]
[422698569,1779265839000,-151.0,8.018e-05,2]
[422698577,1779265839000,-151.0,8.018e-05,2]
[422698581,1779265839000,-311.730927,8.018e-05,2]
[422698587,1779265839000,-311.730927,8.018e-05,2]
[422698585,1779265839000,-151.0,8.018e-05,2]
[422698571,1779265839000,-151.0,8.018e-05,2]
[422698583,1779265839000,-311.730927,8.018e-05,2]
[422698579,1779265839000,-258.407528,8.018e-05,2]
[422698575,1779265839000,-151.0,8.018e-05,2]
[422698589,1779265839000,-151.0,8.018e-05,2]
[422698591,1779265839000,-311.730927,8.018e-05,2]
[422698593,1779265839000,-151.0,8.018e-05,2]
[422698535,1779265839000,-692.254169,8.018e-05,2]
[422698531,1779265839000,-692.254178,8.018e-05,2]
[422698547,1779265839000,-151.0,8.018e-05,2]
[422698527,1779265839000,-692.254178,8.018e-05,2]
[422698481,1779265839000,-151.0,8.018e-05,2]
[422698467,1779265839000,-1917.443085,8.018e-05,2]
[422698469,1779265839000,-1917.443085,8.018e-05,2]
[422698529,1779265839000,-692.254178,8.018e-05,2]
[422698483,1779265839000,-151.0,8.018e-05,2]
[422698487,1779265839000,-167.674035,8.018e-05,2]
[422698486,1779265839000,-151.0,8.018e-05,2]
[422698489,1779265839000,-151.0,8.018e-05,2]
[422698492,1779265839000,-171.889529,8.018e-05,2]
[422698502,1779265839000,-692.254178,8.018e-05,2]
[422698503,1779265839000,-692.254178,8.018e-05,2]
[422698505,1779265839000,-692.254178,8.018e-05,2]
[422698507,1779265839000,-692.254178,8.018e-05,2]
[422698509,1779265839000,-692.254178,8.018e-05,2]
[422698471,1779265839000,-1917.443085,8.018e-05,2]
[422698498,1779265839000,-692.254178,8.018e-05,2]
[422698511,1779265839000,-692.254178,8.018e-05,2]
[422698515,1779265839000,-692.254178,8.018e-05,2]
[422698533,1779265839000,-692.254178,8.018e-05,2]
[422698525,1779265839000,-692.254178,8.018e-05,2]
[422698523,1779265839000,-692.254178,8.018e-05,2]
[422698518,1779265839000,-692.254178,8.018e-05,2]
[422698520,1779265839000,-692.254178,8.018e-05,2]
[422698513,1779265839000,-692.254178,8.018e-05,2]
[422698501,1779265839000,-692.254178,8.018e-05,2]
[422698493,1779265839000,-151.0,8.018e-05,2]
[422698497,1779265839000,-168.653403,8.018e-05,2]
[422698499,1779265839000,-692.254178,8.018e-05,2]
[422698495,1779265839000,-151.0,8.018e-05,2]
[422698661,1779265840000,-1666.936839,8.018e-05,2]
[422698670,1779265840000,-1666.936839,8.018e-05,2]
[422698649,1779265840000,-1666.936839,8.018e-05,2]
[422698651,1779265840000,-1666.936839,8.018e-05,2]
[422698653,1779265840000,-1666.936839,8.018e-05,2]
[422698655,1779265840000,-1666.936839,8.018e-05,2]
[422698667,1779265840000,-1666.936839,8.018e-05,2]
[422698657,1779265840000,-1666.936839,8.018e-05,2]
[422698665,1779265840000,-1666.936839,8.018e-05,2]
[422698674,1779265840000,-1666.936839,8.018e-05,2]
[422698685,1779265840000,-1666.936842,8.018e-05,2]
[422698672,1779265840000,-1666.936839,8.018e-05,2]
[422698663,1779265840000,-1666.936839,8.018e-05,2]
[422698676,1779265840000,-1666.936839,8.018e-05,2]
[422698687,1779265840000,-151.0,8.018e-05,2]
[422698689,1779265840000,-151.0,8.018e-05,2]
[422698691,1779265840000,-151.0,8.018e-05,2]
[422698682,1779265840000,-1666.936839,8.018e-05,2]
[422698695,1779265840000,-194.723576,8.018e-05,2]
[422698678,1779265840000,-1666.936839,8.018e-05,2]
[422698647,1779265840000,-1666.936839,8.018e-05,2]
[422698659,1779265840000,-1666.936839,8.018e-05,2]
[422698645,1779265840000,-311.730922,8.018e-05,2]
[422698680,1779265840000,-1666.936839,8.018e-05,2]
[422698625,1779265840000,-311.730927,8.018e-05,2]
[422698598,1779265840000,-151.0,8.018e-05,2]
[422698595,1779265840000,-311.730927,8.018e-05,2]
[422698605,1779265840000,-151.0,8.018e-05,2]
[422698608,1779265840000,-311.730927,8.018e-05,2]
[422698599,1779265840000,-151.0,8.018e-05,2]
[422698604,1779265840000,-151.0,8.018e-05,2]
[422698602,1779265840000,-311.730927,8.018e-05,2]
[422698609,1779265840000,-151.0,8.018e-05,2]
[422698613,1779265840000,-151.0,8.018e-05,2]
[422698615,1779265840000,-311.730927,8.018e-05,2]
[422698612,1779265840000,-151.0,8.018e-05,2]
[422698621,1779265840000,-311.730927,8.018e-05,2]
[422698619,1779265840000,-202.696786,8.018e-05,2]
[422698617,1779265840000,-151.0,8.018e-05,2]
[422698623,1779265840000,-275.208196,8.018e-05,2]
[422698635,1779265840000,-311.730927,8.018e-05,2]
[422698637,1779265840000,-311.730927,8.018e-05,2]
[422698633,1779265840000,-311.730927,8.018e-05,2]
[422698641,1779265840000,-311.730927,8.018e-05,2]
[422698631,1779265840000,-311.730927,8.018e-05,2]
[422698627,1779265840000,-311.730927,8.018e-05,2]
[422698643,1779265840000,-311.730927,8.018e-05,2]
[422698639,1779265840000,-311.730927,8.018e-05,2]
[422698629,1779265840000,-311.730927,8.018e-05,2]
[422698684,1779265840000,-1666.936839,8.018e-05,2]
[422698693,1779265840000,-151.0,8.018e-05,2]
[422698700,1779265840000,-194.723576,8.018e-05,2]
[422698784,1779265840000,-336.572983,8.018e-05,2]